[Event "Schack-SM 2024: Mastarklassen"]
[Site "Fortnox Arena, Hejaregatan 5, Vaxjo, Sweden"]
[Date "2024.07.04"]
[Round "6.6"]
[White "Nygren, David"]
[Black "Joensson, Jacob"]
[Result "1/2-1/2"]
[TimeControl "90 minutes for 40 moves + 30 minutes for the rest of the game + 30 seconds per move from move one."]
[WhiteElo "2132"]
[BlackElo "2068"]

1. e4 {[%clk 01:30:55]} {[%emt 00:00:06]} e5 {[%clk 01:30:56]} {[%emt
00:00:05]} 2. Nf3 {[%clk 01:31:15]} {[%emt 00:00:09]} Nc6 {[%clk 01:31:22]}
{[%emt 00:00:04]} 3. Bb5 {[%clk 01:31:33]} {[%emt 00:00:13]} Nf6 {[%clk
01:31:47]} {[%emt 00:00:05]} 4. d3 {[%clk 01:31:15]} {[%emt 00:00:48]} Bc5
{[%clk 01:32:12]} {[%emt 00:00:05]} 5. O-O {[%clk 01:29:32]} {[%emt 00:02:13]}
Nd4 {[%clk 01:32:37]} {[%emt 00:00:04]} 6. Nxd4 {[%clk 01:28:27]} {[%emt
00:01:35]} Bxd4 {[%clk 01:33:02]} {[%emt 00:00:06]} 7. c3 {[%clk 01:27:40]}
{[%emt 00:01:16]} Bb6 {[%clk 01:33:26]} {[%emt 00:00:06]} 8. Qe2 {[%clk
01:26:44]} {[%emt 00:01:27]} c6 {[%clk 01:32:54]} {[%emt 00:01:02]} 9. Ba4
{[%clk 01:26:22]} {[%emt 00:00:52]} d6 {[%clk 01:33:15]} {[%emt 00:00:09]} 10.
Be3 {[%clk 01:24:52]} {[%emt 00:01:58]} Be6 {[%clk 01:32:04]} {[%emt 00:01:42]}
11. Nd2 {[%clk 01:22:14]} {[%emt 00:03:07]} O-O {[%clk 01:28:16]} {[%emt
00:04:18]} 12. Bb3 {[%clk 01:21:10]} {[%emt 00:01:36]} Qe7 {[%clk 01:23:06]}
{[%emt 00:05:39]} 13. Bxe6 {[%clk 01:18:26]} {[%emt 00:03:13]} fxe6 {[%clk
01:23:28]} {[%emt 00:00:07]} 14. Nc4 {[%clk 01:16:48]} {[%emt 00:02:09]} Bxe3
{[%clk 01:11:49]} {[%emt 00:12:09]} 15. Qxe3 {[%clk 01:16:07]} {[%emt
00:01:11]} b5 {[%clk 01:03:19]} {[%emt 00:09:00]} 16. Na5 {[%clk 01:13:13]}
{[%emt 00:03:24]} Qc7 {[%clk 01:02:24]} {[%emt 00:01:25]} 17. Nb3 {[%clk
01:12:19]} {[%emt 00:01:25]} c5 {[%clk 00:55:09]} {[%emt 00:07:44]} 18. Nd2
{[%clk 01:10:52]} {[%emt 00:01:57]} Rab8 {[%clk 00:54:06]} {[%emt 00:01:34]} 19.
Qh3 {[%clk 01:08:57]} {[%emt 00:02:25]} Qe7 {[%clk 00:52:42]} {[%emt 00:01:53]}
20. Rae1 {[%clk 01:00:49]} {[%emt 00:08:37]} b4 {[%clk 00:49:25]} {[%emt
00:03:48]} 21. c4 {[%clk 00:51:55]} {[%emt 00:09:24]} Nd7 {[%clk 00:44:58]}
{[%emt 00:04:58]} 22. g3 {[%clk 00:45:51]} {[%emt 00:06:32]} Rf6 {[%clk
00:39:52]} {[%emt 00:05:36]} 23. Qh5 {[%clk 00:40:36]} {[%emt 00:05:44]} Rbf8
{[%clk 00:37:05]} {[%emt 00:03:18]} 24. Qd1 {[%clk 00:38:42]} {[%emt 00:02:24]}
Qf7 {[%clk 00:37:07]} {[%emt 00:00:27]} 25. f3 {[%clk 00:35:39]} {[%emt
00:03:33]} Nb8 {[%clk 00:33:54]} {[%emt 00:03:44]} 26. Qa4 {[%clk 00:34:04]}
{[%emt 00:02:05]} Qc7 {[%clk 00:33:51]} {[%emt 00:00:32]} 27. a3 {[%clk
00:31:46]} {[%emt 00:02:49]} Nc6 {[%clk 00:34:02]} {[%emt 00:00:19]} 28. axb4
{[%clk 00:30:51]} {[%emt 00:01:25]} Nxb4 {[%clk 00:34:24]} {[%emt 00:00:08]} 29.
Qb3 {[%clk 00:26:37]} {[%emt 00:04:44]} Nc6 {[%clk 00:33:04]} {[%emt 00:01:50]}
30. Ra1 {[%clk 00:23:28]} {[%emt 00:03:39]} Nd4 {[%clk 00:28:50]} {[%emt
00:04:44]} 31. Qa4 {[%clk 00:20:47]} {[%emt 00:03:11]} Nxf3+ {[%clk 00:27:50]}
{[%emt 00:01:29]} 32. Nxf3 {[%clk 00:20:37]} {[%emt 00:00:40]} Rxf3 {[%clk
00:28:14]} {[%emt 00:00:06]} 33. Rxf3 {[%clk 00:21:03]} {[%emt 00:00:05]} Rxf3
{[%clk 00:28:39]} {[%emt 00:00:04]} 34. Qe8+ {[%clk 00:21:23]} {[%emt
00:00:11]} Rf8 {[%clk 00:28:56]} {[%emt 00:00:13]} 35. Qxe6+ {[%clk 00:21:47]}
{[%emt 00:00:07]} Qf7 {[%clk 00:29:00]} {[%emt 00:00:25]} 36. Qxf7+ {[%clk
00:21:19]} {[%emt 00:00:59]} Rxf7 {[%clk 00:29:23]} {[%emt 00:00:08]} 37. Ra6
{[%clk 00:21:38]} {[%emt 00:00:10]} Rd7 {[%clk 00:29:47]} {[%emt 00:00:06]} 38.
Kf2 {[%clk 00:19:40]} {[%emt 00:02:28]} Kf7 {[%clk 00:30:10]} {[%emt 00:00:06]}
39. Ke3 {[%clk 00:19:00]} {[%emt 00:01:09]} Ke6 {[%clk 00:30:29]} {[%emt
00:00:12]} 40. Kd2 {[%clk 00:19:02]} {[%emt 00:00:29]} Rf7 {[%clk 00:29:57]}
{[%emt 00:01:02]} 41. Kc3 {[%clk 00:17:57]} {[%emt 00:01:35]} Rb7 {[%clk
00:28:47]} {[%emt 00:01:39]} 42. b3 {[%clk 00:16:06]} {[%emt 00:02:21]} h5
{[%clk 00:27:23]} {[%emt 00:01:55]} 43. Ra2 {[%clk 00:14:02]} {[%emt 00:02:33]}
g6 {[%clk 00:26:55]} {[%emt 00:00:58]} 44. Rf2 {[%clk 00:13:53]} {[%emt
00:00:39]} Rb8 {[%clk 00:27:19]} {[%emt 00:00:08]} 45. h3 {[%clk 00:13:19]}
{[%emt 00:01:03]} Ke7 {[%clk 00:26:40]} {[%emt 00:01:09]} 46. g4 {[%clk
00:12:40]} {[%emt 00:01:09]} hxg4 {[%clk 00:26:32]} {[%emt 00:00:37]} 47. hxg4
{[%clk 00:12:35]} {[%emt 00:00:35]} Rh8 {[%clk 00:26:42]} {[%emt 00:00:20]} 48.
Ra2 {[%clk 00:12:09]} {[%emt 00:00:57]} Rh4 {[%clk 00:26:47]} {[%emt 00:00:25]}
49. Rxa7+ {[%clk 00:12:14]} {[%emt 00:00:26]} Ke6 {[%clk 00:27:09]} {[%emt
00:00:07]} 50. b4 {[%clk 00:10:52]} {[%emt 00:01:52]} cxb4+ {[%clk 00:25:31]}
{[%emt 00:02:08]} 51. Kxb4 {[%clk 00:11:16]} {[%emt 00:00:06]} Rxg4 {[%clk
00:25:14]} {[%emt 00:00:47]} 52. Ra6 {[%clk 00:10:21]} {[%emt 00:01:25]} Rg3
{[%clk 00:24:19]} {[%emt 00:01:25]} 53. Kc3 {[%clk 00:09:59]} {[%emt 00:00:51]}
Kd7 {[%clk 00:24:36]} {[%emt 00:00:15]} 54. Ra7+ {[%clk 00:09:09]} {[%emt
00:01:20]} Kc6 {[%clk 00:24:57]} {[%emt 00:00:08]} 55. Ra6+ {[%clk 00:06:27]}
{[%emt 00:03:11]} Kc5 {[%clk 00:25:05]} {[%emt 00:00:20]} 56. Ra5+ {[%clk
00:06:07]} {[%emt 00:00:51]} Kc6 {[%clk 00:25:28]} {[%emt 00:00:07]} 57. Rd5
{[%clk 00:06:01]} {[%emt 00:00:36]} Rg1 {[%clk 00:23:28]} {[%emt 00:02:29]} 58.
Kd2 {[%clk 00:05:31]} {[%emt 00:00:59]} Rg2+ {[%clk 00:20:45]} {[%emt
00:03:13]} 59. Ke3 {[%clk 00:05:22]} {[%emt 00:00:43]} Rc2 {[%clk 00:20:57]}
{[%emt 00:00:14]} 60. Kf3 {[%clk 00:05:33]} {[%emt 00:00:19]} Kd7 {[%clk
00:19:55]} {[%emt 00:01:33]} 61. Kg4 {[%clk 00:29:42]} {[%emt 00:06:19]} Ke6
{[%clk 00:46:54]} {[%emt 00:03:34]} 62. Kf3 {[%clk 00:27:59]} {[%emt 00:02:12]}
Ke7 {[%clk 00:45:31]} {[%emt 00:01:54]} 63. Ra5 {[%clk 00:28:20]} {[%emt
00:00:09]} Ke6 {[%clk 00:45:36]} {[%emt 00:00:24]} 64. Ra7 {[%clk 00:28:31]}
{[%emt 00:00:18]} Kf6 {[%clk 00:45:55]} {[%emt 00:00:12]} 65. Rd7 {[%clk
00:27:25]} {[%emt 00:01:36]} Ke6 {[%clk 00:46:20]} {[%emt 00:00:06]} 66. Rh7
{[%clk 00:27:28]} {[%emt 00:00:26]} Kf6 {[%clk 00:46:41]} {[%emt 00:00:11]} 67.
Rh3 {[%clk 00:26:26]} {[%emt 00:01:32]} Ke6 {[%clk 00:46:37]} {[%emt 00:00:34]}
68. Rg3 {[%clk 00:25:39]} {[%emt 00:01:15]} Kf6 {[%clk 00:46:34]} {[%emt
00:00:32]} 69. Rg1 {[%clk 00:22:48]} {[%emt 00:03:15]} Rd2 {[%clk 00:46:02]}
{[%emt 00:01:08]} 70. Rf1 {[%clk 00:22:25]} {[%emt 00:00:53]} Ke6 {[%clk
00:46:17]} {[%emt 00:00:16]} 71. Ke3 {[%clk 00:22:42]} {[%emt 00:00:12]} Rc2
{[%clk 00:46:40]} {[%emt 00:00:07]} 72. Rf8 {[%clk 00:21:44]} {[%emt 00:01:28]}
Ke7 {[%clk 00:46:56]} {[%emt 00:00:14]} 73. Rf1 {[%clk 00:21:26]} {[%emt
00:00:47]} Ke6 {[%clk 00:47:20]} {[%emt 00:00:08]} 74. Rf8 {[%clk 00:21:51]}
{[%emt 00:00:04]} 1/2-1/2

[Event "Schack-SM 2024: Mastarklassen"]
[Site "Fortnox Arena, Hejaregatan 5, Vaxjo, Sweden"]
[Date "2024.07.04"]
[Round "6.7"]
[White "Joensson, Oscar"]
[Black "Walinder, Lars"]
[Result "1/2-1/2"]
[TimeControl "90 minutes for 40 moves + 30 minutes for the rest of the game + 30 seconds per move from move one."]
[BlackTitle "FM"]
[WhiteElo "1989"]
[BlackElo "2233"]

1. d4 {[%clk 01:30:58]} {[%emt 00:00:02]} Nf6 {[%clk 01:30:51]} {[%emt
00:00:09]} 2. c4 {[%clk 01:31:23]} {[%emt 00:00:04]} e6 {[%clk 01:31:11]}
{[%emt 00:00:10]} 3. g3 {[%clk 01:31:48]} {[%emt 00:00:06]} Bb4+ {[%clk
01:31:18]} {[%emt 00:00:21]} 4. Bd2 {[%clk 01:32:11]} {[%emt 00:00:09]} Be7
{[%clk 01:31:42]} {[%emt 00:00:05]} 5. Bg2 {[%clk 01:32:36]} {[%emt 00:00:05]}
d5 {[%clk 01:31:51]} {[%emt 00:00:22]} 6. Nf3 {[%clk 01:33:00]} {[%emt
00:00:05]} O-O {[%clk 01:31:40]} {[%emt 00:00:42]} 7. O-O {[%clk 01:33:24]}
{[%emt 00:00:05]} c6 {[%clk 01:31:46]} {[%emt 00:00:24]} 8. Qc2 {[%clk
01:32:39]} {[%emt 00:01:16]} Nbd7 {[%clk 01:32:05]} {[%emt 00:00:11]} 9. Nc3
{[%clk 01:21:11]} {[%emt 00:11:57]} dxc4 {[%clk 01:23:07]} {[%emt 00:09:27]} 10.
Nd1 {[%clk 00:52:22]} {[%emt 00:29:20]} c5 {[%clk 00:59:12]} {[%emt 00:24:26]}
11. Qxc4 {[%clk 00:36:36]} {[%emt 00:16:15]} Nb6 {[%clk 00:56:19]} {[%emt
00:03:23]} 12. Qd3 {[%clk 00:36:09]} {[%emt 00:00:56]} cxd4 {[%clk 00:55:27]}
{[%emt 00:01:23]} 13. Qxd4 {[%clk 00:27:27]} {[%emt 00:09:13]} Qxd4 {[%clk
00:53:24]} {[%emt 00:02:33]} 14. Nxd4 {[%clk 00:27:51]} {[%emt 00:00:05]} Rd8
{[%clk 00:53:12]} {[%emt 00:00:41]} 15. Nb3 {[%clk 00:23:50]} {[%emt 00:04:31]}
Nc4 {[%clk 00:52:13]} {[%emt 00:01:30]} 16. Bc3 {[%clk 00:23:46]} {[%emt
00:00:34]} Nd5 {[%clk 00:48:16]} {[%emt 00:04:27]} 17. Rc1 {[%clk 00:23:13]}
{[%emt 00:01:03]} Nxc3 {[%clk 00:39:10]} {[%emt 00:09:36]} 18. Rxc3 {[%clk
00:23:34]} {[%emt 00:00:09]} Nd2 {[%clk 00:37:58]} {[%emt 00:01:42]} 19. Nxd2
{[%clk 00:19:52]} {[%emt 00:04:11]} Rxd2 {[%clk 00:35:46]} {[%emt 00:02:43]} 20.
Rc7 {[%clk 00:12:47]} {[%emt 00:07:35]} Bd8 {[%clk 00:34:28]} {[%emt 00:01:48]}
21. Bxb7 {[%clk 00:11:07]} {[%emt 00:02:11]} Bxc7 {[%clk 00:28:08]} {[%emt
00:06:49]} 22. Bxa8 {[%clk 00:11:31]} {[%emt 00:00:05]} Ba6 {[%clk 00:27:51]}
{[%emt 00:00:48]} 23. Bf3 {[%clk 00:04:32]} {[%emt 00:07:28]} Be5 {[%clk
00:23:55]} {[%emt 00:04:27]} 24. a3 {[%clk 00:03:50]} {[%emt 00:01:11]} g6
{[%clk 00:21:11]} {[%emt 00:03:14]} 25. Re1 {[%clk 00:03:50]} {[%emt 00:00:30]}
Bxb2 {[%clk 00:19:42]} {[%emt 00:01:59]} 26. Nxb2 {[%clk 00:04:14]} {[%emt
00:00:06]} Rxb2 {[%clk 00:20:08]} {[%emt 00:00:04]} 27. Rc1 {[%clk 00:03:32]}
{[%emt 00:01:12]} Bb5 {[%clk 00:16:36]} {[%emt 00:04:02]} 28. Rc8+ {[%clk
00:03:27]} {[%emt 00:00:35]} Kg7 {[%clk 00:16:58]} {[%emt 00:00:07]} 29. Rb8
{[%clk 00:02:00]} {[%emt 00:01:56]} Rb3 {[%clk 00:14:05]} {[%emt 00:03:24]} 30.
a4 {[%clk 00:01:53]} {[%emt 00:00:37]} Bxa4 {[%clk 00:13:48]} {[%emt 00:00:48]}
31. Ra8 {[%clk 00:02:19]} {[%emt 00:00:03]} Rb2 {[%clk 00:12:53]} {[%emt
00:01:26]} 32. Rxa7 {[%clk 00:02:35]} {[%emt 00:00:14]} Bd1 {[%clk 00:12:36]}
{[%emt 00:00:47]} 33. Kf1 {[%clk 00:02:49]} {[%emt 00:00:15]} 1/2-1/2

[Event "Schack-SM 2024: Mastarklassen"]
[Site "Fortnox Arena, Hejaregatan 5, Vaxjo, Sweden"]
[Date "2024.07.04"]
[Round "6.8"]
[White "Carlstrom, Niklas"]
[Black "Lind, Jan-Olov"]
[Result "0-1"]
[TimeControl "90 minutes for 40 moves + 30 minutes for the rest of the game + 30 seconds per move from move one."]
[WhiteElo "2100"]
[BlackElo "2135"]

1. e4 {[%clk 01:30:48]} {[%emt 00:00:11]} c5 {[%clk 01:30:32]} {[%emt
00:00:29]} 2. Nc3 {[%clk 01:31:02]} {[%emt 00:00:15]} e6 {[%clk 01:29:48]}
{[%emt 00:01:14]} 3. Nf3 {[%clk 01:30:46]} {[%emt 00:00:46]} d5 {[%clk
01:24:57]} {[%emt 00:05:22]} 4. exd5 {[%clk 01:29:38]} {[%emt 00:01:38]} exd5
{[%clk 01:25:21]} {[%emt 00:00:06]} 5. Bb5+ {[%clk 01:28:26]} {[%emt 00:01:42]}
Nc6 {[%clk 01:22:46]} {[%emt 00:03:07]} 6. d4 {[%clk 01:27:44]} {[%emt
00:01:10]} Nf6 {[%clk 01:18:08]} {[%emt 00:05:08]} 7. O-O {[%clk 01:27:24]}
{[%emt 00:00:50]} Be7 {[%clk 01:09:29]} {[%emt 00:09:09]} 8. dxc5 {[%clk
01:23:14]} {[%emt 00:04:40]} O-O {[%clk 01:08:48]} {[%emt 00:01:11]} 9. Bxc6
{[%clk 01:11:59]} {[%emt 00:11:46]} bxc6 {[%clk 01:09:11]} {[%emt 00:00:07]} 10.
Be3 {[%clk 01:12:08]} {[%emt 00:00:19]} Bg4 {[%clk 00:58:58]} {[%emt 00:10:44]}
11. Bd4 {[%clk 00:58:19]} {[%emt 00:14:18]} Ne4 {[%clk 00:55:09]} {[%emt
00:04:20]} 12. b4 {[%clk 00:42:16]} {[%emt 00:16:33]} Ng5 {[%clk 00:50:21]}
{[%emt 00:05:17]} 13. Qd3 {[%clk 00:33:55]} {[%emt 00:08:51]} Nxf3+ {[%clk
00:47:14]} {[%emt 00:03:38]} 14. gxf3 {[%clk 00:34:18]} {[%emt 00:00:06]} Bh3
{[%clk 00:47:31]} {[%emt 00:00:13]} 15. Rfe1 {[%clk 00:33:43]} {[%emt
00:01:04]} Bxc5 {[%clk 00:41:47]} {[%emt 00:06:16]} 16. Kh1 {[%clk 00:29:57]}
{[%emt 00:04:14]} Bxd4 {[%clk 00:36:18]} {[%emt 00:06:00]} 17. Qxd4 {[%clk
00:30:17]} {[%emt 00:00:09]} Qb6 {[%clk 00:35:43]} {[%emt 00:01:06]} 18. Qh4
{[%clk 00:25:45]} {[%emt 00:05:00]} Bf5 {[%clk 00:31:57]} {[%emt 00:04:18]} 19.
Rg1 {[%clk 00:20:43]} {[%emt 00:05:30]} Rfe8 {[%clk 00:24:37]} {[%emt
00:07:52]} 20. Rae1 {[%clk 00:15:28]} {[%emt 00:05:45]} Bg6 {[%clk 00:19:46]}
{[%emt 00:05:23]} 21. a4 {[%clk 00:11:21]} {[%emt 00:04:37]} a5 {[%clk
00:15:05]} {[%emt 00:05:11]} 22. b5 {[%clk 00:08:33]} {[%emt 00:03:17]} Qc5
{[%clk 00:14:38]} {[%emt 00:00:59]} 23. Ne2 {[%clk 00:07:08]} {[%emt 00:01:52]}
cxb5 {[%clk 00:13:12]} {[%emt 00:01:58]} 24. axb5 {[%clk 00:07:21]} {[%emt
00:00:15]} Qxb5 {[%clk 00:12:21]} {[%emt 00:01:21]} 25. Nf4 {[%clk 00:05:10]}
{[%emt 00:02:41]} a4 {[%clk 00:09:56]} {[%emt 00:02:56]} 26. Rb1 {[%clk
00:01:46]} {[%emt 00:03:53]} Qc6 {[%clk 00:09:10]} {[%emt 00:01:17]} 27. Nxg6
{[%clk 00:01:45]} {[%emt 00:00:29]} fxg6 {[%clk 00:06:57]} {[%emt 00:02:44]} 28.
Qd4 {[%clk 00:01:41]} {[%emt 00:00:33]} Reb8 {[%clk 00:05:08]} {[%emt
00:02:20]} 29. Rxb8+ {[%clk 00:01:32]} {[%emt 00:00:39]} Rxb8 {[%clk 00:05:28]}
{[%emt 00:00:11]} 30. Re1 {[%clk 00:01:46]} {[%emt 00:00:15]} h6 {[%clk
00:01:10]} {[%emt 00:04:47]} 31. Re7 {[%clk 00:01:58]} {[%emt 00:00:19]} Qf6
{[%clk 00:01:24]} {[%emt 00:00:17]} 32. Qxd5+ {[%clk 00:02:15]} {[%emt
00:00:12]} Kh7 {[%clk 00:01:37]} {[%emt 00:00:17]} 33. Ra7 {[%clk 00:02:00]}
{[%emt 00:00:45]} Rd8 {[%clk 00:01:16]} {[%emt 00:00:51]} 34. Qe4 {[%clk
00:01:43]} {[%emt 00:00:47]} Rd1+ {[%clk 00:01:01]} {[%emt 00:00:45]} 35. Kg2
{[%clk 00:02:07]} {[%emt 00:00:06]} Qa1 {[%clk 00:01:07]} {[%emt 00:00:26]} 36.
Qe3 {[%clk 00:01:16]} {[%emt 00:01:20]} Rg1+ {[%clk 00:01:27]} {[%emt
00:00:10]} 37. Kh3 {[%clk 00:01:40]} {[%emt 00:00:05]} Qf1+ {[%clk 00:01:41]}
{[%emt 00:00:17]} 38. Kh4 {[%clk 00:02:05]} {[%emt 00:00:05]} g5+ {[%clk
00:01:58]} {[%emt 00:00:13]} 0-1

[Event "Schack-SM 2024: Mastarklassen"]
[Site "Fortnox Arena, Hejaregatan 5, Vaxjo, Sweden"]
[Date "2024.07.04"]
[Round "6.9"]
[White "Lindborg, Patrik"]
[Black "Granath, Jonas"]
[Result "1-0"]
[TimeControl "90 minutes for 40 moves + 30 minutes for the rest of the game + 30 seconds per move from move one."]
[WhiteElo "2162"]
[BlackElo "1948"]

1. d4 {[%clk 01:30:58]} d5 {[%clk 01:30:53]} {[%emt 00:00:08]} 2. c4 {[%clk
01:31:22]} {[%emt 00:00:06]} e6 {[%clk 01:31:18]} {[%emt 00:00:06]} 3. Nc3
{[%clk 01:31:47]} {[%emt 00:00:05]} c5 {[%clk 01:31:23]} {[%emt 00:00:24]} 4.
cxd5 {[%clk 01:31:58]} {[%emt 00:00:18]} cxd4 {[%clk 01:31:44]} {[%emt
00:00:10]} 5. Qa4+ {[%clk 01:32:20]} {[%emt 00:00:08]} Bd7 {[%clk 01:32:01]}
{[%emt 00:00:13]} 6. Qxd4 {[%clk 01:32:48]} {[%emt 00:00:03]} exd5 {[%clk
01:32:06]} {[%emt 00:00:25]} 7. Qxd5 {[%clk 01:33:12]} {[%emt 00:00:06]} Nf6
{[%clk 01:28:27]} {[%emt 00:04:07]} 8. Qd1 {[%clk 01:33:36]} {[%emt 00:00:06]}
Bc5 {[%clk 01:28:16]} {[%emt 00:00:42]} 9. Nf3 {[%clk 01:34:03]} {[%emt
00:00:03]} O-O {[%clk 01:28:26]} {[%emt 00:00:20]} 10. e3 {[%clk 01:34:31]}
{[%emt 00:00:02]} Qe7 {[%clk 01:28:20]} {[%emt 00:00:35]} 11. Be2 {[%clk
01:32:37]} {[%emt 00:02:25]} Nc6 {[%clk 01:28:41]} {[%emt 00:00:09]} 12. O-O
{[%clk 01:32:57]} {[%emt 00:00:10]} Ne5 {[%clk 01:28:01]} {[%emt 00:01:10]} 13.
Nd4 {[%clk 01:32:25]} {[%emt 00:01:02]} Rfd8 {[%clk 01:22:07]} {[%emt
00:06:24]} 14. Qc2 {[%clk 01:31:33]} {[%emt 00:01:22]} Rac8 {[%clk 01:10:30]}
{[%emt 00:12:07]} 15. Rd1 {[%clk 01:26:37]} {[%emt 00:05:26]} h5 {[%clk
01:04:51]} {[%emt 00:06:08]} 16. Bd2 {[%clk 01:18:34]} {[%emt 00:08:33]} Neg4
{[%clk 00:47:25]} {[%emt 00:17:56]} 17. Be1 {[%clk 00:46:10]} {[%emt 00:32:55]}
b5 {[%clk 00:40:05]} {[%emt 00:07:50]} 18. a3 {[%clk 00:37:25]} {[%emt
00:09:16]} a5 {[%clk 00:40:20]} {[%emt 00:00:14]} 19. Qb3 {[%clk 00:37:25]}
{[%emt 00:00:30]} b4 {[%clk 00:34:55]} {[%emt 00:05:55]} 20. axb4 {[%clk
00:37:46]} {[%emt 00:00:09]} axb4 {[%clk 00:35:14]} {[%emt 00:00:11]} 21. Ncb5
{[%clk 00:28:54]} {[%emt 00:09:22]} Bxb5 {[%clk 00:27:20]} {[%emt 00:08:24]} 22.
Bxb5 {[%clk 00:27:40]} {[%emt 00:01:44]} Nxh2 {[%clk 00:22:45]} {[%emt
00:05:04]} 23. Nc6 {[%clk 00:25:28]} {[%emt 00:02:42]} Rxc6 {[%clk 00:19:36]}
{[%emt 00:03:39]} 24. Rxd8+ {[%clk 00:25:28]} {[%emt 00:00:31]} Qxd8 {[%clk
00:20:05]} {[%emt 00:00:02]} 25. Bxc6 {[%clk 00:25:51]} {[%emt 00:00:06]} Qd6
{[%clk 00:16:17]} {[%emt 00:04:18]} 26. Bb5 {[%clk 00:24:57]} {[%emt 00:01:24]}
Nhg4 {[%clk 00:15:23]} {[%emt 00:01:23]} 27. Ra8+ {[%clk 00:25:03]} {[%emt
00:00:25]} Kh7 {[%clk 00:15:24]} {[%emt 00:00:28]} 28. Qd3+ {[%clk 00:25:28]}
{[%emt 00:00:05]} g6 {[%clk 00:15:24]} {[%emt 00:00:31]} 29. Qxd6 {[%clk
00:23:29]} {[%emt 00:02:30]} Bxd6 {[%clk 00:15:52]} {[%emt 00:00:01]} 30. Ra4
{[%clk 00:21:05]} {[%emt 00:02:55]} Nd5 {[%clk 00:15:58]} {[%emt 00:00:23]} 31.
e4 {[%clk 00:21:07]} {[%emt 00:00:27]} Nb6 {[%clk 00:16:00]} {[%emt 00:00:29]}
32. Ra6 {[%clk 00:21:11]} {[%emt 00:00:27]} Bc5 {[%clk 00:16:17]} {[%emt
00:00:13]} 33. Kf1 {[%clk 00:20:30]} {[%emt 00:01:10]} Nf6 {[%clk 00:15:42]}
{[%emt 00:01:05]} 34. f3 {[%clk 00:19:32]} {[%emt 00:01:28]} Nfd7 {[%clk
00:15:57]} {[%emt 00:00:15]} 35. Bf2 {[%clk 00:18:19]} {[%emt 00:01:43]} Bxf2
{[%clk 00:16:01]} {[%emt 00:00:27]} 36. Kxf2 {[%clk 00:18:41]} {[%emt
00:00:07]} Kg7 {[%clk 00:16:13]} {[%emt 00:00:18]} 37. Ra7 {[%clk 00:17:21]}
{[%emt 00:01:50]} Ne5 {[%clk 00:14:15]} {[%emt 00:02:28]} 38. Rb7 {[%clk
00:16:53]} {[%emt 00:00:57]} Nc8 {[%clk 00:12:49]} {[%emt 00:01:56]} 39. Be2
{[%clk 00:16:09]} {[%emt 00:01:15]} Nc6 {[%clk 00:13:03]} {[%emt 00:00:17]} 40.
Rc7 {[%clk 00:13:02]} {[%emt 00:03:37]} N8e7 {[%clk 00:10:32]} {[%emt
00:03:01]} 41. Bb5 {[%clk 00:12:33]} {[%emt 00:00:59]} Nd4 {[%clk 00:10:41]}
{[%emt 00:00:20]} 42. Rxe7 {[%clk 00:12:44]} {[%emt 00:00:19]} Nxb5 {[%clk
00:11:05]} {[%emt 00:00:08]} 43. Rb7 {[%clk 00:13:03]} {[%emt 00:00:10]} 1-0